[Event "Early-Titled-Tuesday-Blitz-February-20-2024"]
[Site "Chess.com"]
[Date "2024.02.20"]
[Round "7"]
[White "BardArtem"]
[Black "CM_rui"]
[Result "0-1"]
[WhiteElo "2763"]
[BlackElo "2612"]
[TimeControl "180+1"]
[EndTime "9:20:21 PST"]
[Termination "CM_rui won on time"]

1. e4 {[%clk 0:03:00.9]} 1... e5 {[%clk 0:02:59.7]} 2. Nf3 {[%clk 0:03:00.2]}
2... Nc6 {[%clk 0:03:00.3]} 3. Bc4 {[%clk 0:02:59]} 3... Bc5 {[%clk 0:03:00.4]}
4. d3 {[%clk 0:02:58.6]} 4... Nf6 {[%clk 0:03:00.4]} 5. Nc3 {[%clk 0:02:59.2]}
5... O-O {[%clk 0:03:00.4]} 6. a3 {[%clk 0:02:58.2]} 6... d6 {[%clk 0:02:57.9]}
7. Bg5 {[%clk 0:02:54.2]} 7... h6 {[%clk 0:02:58.1]} 8. Bh4 {[%clk 0:02:53.7]}
8... Be6 {[%clk 0:02:58.2]} 9. h3 {[%clk 0:02:47.7]} 9... a6 {[%clk 0:02:58.2]}
10. Qd2 {[%clk 0:02:41.8]} 10... Nd4 {[%clk 0:02:53.7]} 11. Nxd4 {[%clk
0:02:33.3]} 11... exd4 {[%clk 0:02:53.5]} 12. Bxf6 {[%clk 0:02:21.1]} 12... dxc3
{[%clk 0:02:29.8]} 13. Bxc3 {[%clk 0:02:17.3]} 13... Bxc4 {[%clk 0:02:29.6]} 14.
dxc4 {[%clk 0:02:17.4]} 14... Qh4 {[%clk 0:02:22.7]} 15. O-O {[%clk 0:02:05.9]}
15... Qxe4 {[%clk 0:02:22.3]} 16. Qd3 {[%clk 0:02:03.4]} 16... Rfe8 {[%clk
0:02:15.1]} 17. Qg3 {[%clk 0:01:46.8]} 17... g6 {[%clk 0:01:50.1]} 18. b3 {[%clk
0:01:39.5]} 18... Qxc2 {[%clk 0:01:45.8]} 19. b4 {[%clk 0:01:33.5]} 19... Bb6
{[%clk 0:01:39.7]} 20. Qf3 {[%clk 0:01:23.1]} 20... Re6 {[%clk 0:01:28]} 21.
Qxb7 {[%clk 0:01:15.4]} 21... Rae8 {[%clk 0:01:21.9]} 22. Rac1 {[%clk
0:01:14.9]} 22... Qb3 {[%clk 0:01:04.7]} 23. Qf3 {[%clk 0:01:07.3]} 23... Qxc4
{[%clk 0:00:57.3]} 24. Ba1 {[%clk 0:00:52.5]} 24... Qe4 {[%clk 0:00:49.3]} 25.
Qc3 {[%clk 0:00:52.3]} 25... f6 {[%clk 0:00:39.4]} 26. a4 {[%clk 0:00:46.8]}
26... c5 {[%clk 0:00:20.5]} 27. b5 {[%clk 0:00:32]} 27... axb5 {[%clk 0:00:19]}
28. axb5 {[%clk 0:00:32.9]} 28... Qb4 {[%clk 0:00:16.3]} 29. Qg3 {[%clk
0:00:27.2]} 29... Kf7 {[%clk 0:00:15.7]} 30. Qf3 {[%clk 0:00:24.4]} 30... Qxb5
{[%clk 0:00:11.7]} 31. Rb1 {[%clk 0:00:24.7]} 31... Qa6 {[%clk 0:00:12.1]} 32.
Qc6 {[%clk 0:00:22.7]} 32... d5 {[%clk 0:00:08.6]} 33. Qxd5 {[%clk 0:00:22.9]}
33... Ba7 {[%clk 0:00:05.6]} 34. Bc3 {[%clk 0:00:11.8]} 34... Re7 {[%clk
0:00:05.7]} 35. Ra1 {[%clk 0:00:11.8]} 35... Qc6 {[%clk 0:00:05.3]} 36. Qd2
{[%clk 0:00:12.2]} 36... Bb8 {[%clk 0:00:05.5]} 37. Qxh6 {[%clk 0:00:12.4]}
37... Qd6 {[%clk 0:00:04.6]} 38. Qh7+ {[%clk 0:00:08.8]} 38... Kf8 {[%clk
0:00:04.6]} 39. Qh8+ {[%clk 0:00:09.4]} 39... Kf7 {[%clk 0:00:05.1]} 40. g3
{[%clk 0:00:10.2]} 40... Bc7 {[%clk 0:00:04.7]} 41. Qh7+ {[%clk 0:00:10.5]}
41... Kf8 {[%clk 0:00:05.1]} 42. Qxg6 {[%clk 0:00:11]} 42... Rg7 {[%clk
0:00:03.7]} 43. Ra8+ {[%clk 0:00:11.1]} 43... Bb8 {[%clk 0:00:04.2]} 44. Qc2
{[%clk 0:00:04.2]} 44... Re3 {[%clk 0:00:03.4]} 45. Rxb8+ {[%clk 0:00:03.9]}
45... Qxb8 {[%clk 0:00:04.3]} 0-1

[Event "Early-Titled-Tuesday-Blitz-February-20-2024"]
[Site "Chess.com"]
[Date "2024.02.20"]
[Round "7"]
[White "JaackCamel"]
[Black "mertfelin"]
[Result "0-1"]
[WhiteElo "2189"]
[BlackElo "2346"]
[TimeControl "180+1"]
[EndTime "9:20:23 PST"]
[Termination "mertfelin won by resignation"]

1. d4 {[%clk 0:03:00.9]} 1... d5 {[%clk 0:03:00.1]} 2. c4 {[%clk 0:02:55.3]}
2... e6 {[%clk 0:03:00.5]} 3. Nc3 {[%clk 0:02:49.8]} 3... Nf6 {[%clk 0:03:00.7]}
4. cxd5 {[%clk 0:02:47]} 4... exd5 {[%clk 0:03:01]} 5. Bg5 {[%clk 0:02:46.1]}
5... c6 {[%clk 0:03:01.3]} 6. e3 {[%clk 0:02:45.6]} 6... h6 {[%clk 0:03:01.8]}
7. Bh4 {[%clk 0:02:45]} 7... Be7 {[%clk 0:03:02.6]} 8. Bd3 {[%clk 0:02:44.3]}
8... O-O {[%clk 0:03:03.1]} 9. Qc2 {[%clk 0:02:44.1]} 9... Re8 {[%clk
0:03:03.7]} 10. Nge2 {[%clk 0:02:42.3]} 10... a5 {[%clk 0:03:03.9]} 11. O-O
{[%clk 0:02:39.1]} 11... Na6 {[%clk 0:03:04.4]} 12. a3 {[%clk 0:02:38.5]} 12...
Nc7 {[%clk 0:03:05]} 13. h3 {[%clk 0:02:38]} 13... Ne6 {[%clk 0:02:59.7]} 14.
Rad1 {[%clk 0:02:36.8]} 14... Bd7 {[%clk 0:02:59.9]} 15. f3 {[%clk 0:02:34.9]}
15... b5 {[%clk 0:02:59.9]} 16. Bf2 {[%clk 0:02:33.3]} 16... b4 {[%clk
0:02:58.1]} 17. Nb1 {[%clk 0:02:32.3]} 17... c5 {[%clk 0:02:50.4]} 18. e4 {[%clk
0:02:25.6]} 18... c4 {[%clk 0:02:46.4]} 19. Bxc4 {[%clk 0:02:24.6]} 19... dxc4
{[%clk 0:02:46.8]} 20. Qxc4 {[%clk 0:02:24.3]} 20... Rc8 {[%clk 0:02:45]} 21.
Qd3 {[%clk 0:02:22.3]} 21... Ba4 {[%clk 0:02:32.5]} 22. Rc1 {[%clk 0:02:18.8]}
22... Nc5 {[%clk 0:02:16.4]} 23. Qc4 {[%clk 0:02:04.2]} 23... Ne6 {[%clk
0:02:10.2]} 24. Qxc8 {[%clk 0:01:56.1]} 24... Qxc8 {[%clk 0:02:09.8]} 25. Rxc8
{[%clk 0:01:56.2]} 25... Rxc8 {[%clk 0:02:10.7]} 26. d5 {[%clk 0:01:55.8]} 26...
Nf8 {[%clk 0:02:00.8]} 27. axb4 {[%clk 0:01:54.9]} 27... axb4 {[%clk 0:02:00.5]}
28. Nd4 {[%clk 0:01:46.5]} 28... N8d7 {[%clk 0:01:58.2]} 29. Nf5 {[%clk
0:01:44.8]} 29... Bf8 {[%clk 0:01:56.7]} 30. Nd2 {[%clk 0:01:29.4]} 30... Bb5
{[%clk 0:01:52]} 31. Ra1 {[%clk 0:01:28.5]} 31... Rc2 {[%clk 0:01:50.8]} 32. Nb3
{[%clk 0:01:22.8]} 32... Rxb2 {[%clk 0:01:47.2]} 33. Nbd4 {[%clk 0:01:22.7]}
33... Bd3 {[%clk 0:01:36.2]} 34. Rd1 {[%clk 0:01:19.9]} 34... Rb1 {[%clk
0:01:33.8]} 35. Ne3 {[%clk 0:01:12.3]} 35... Rxd1+ {[%clk 0:01:26.5]} 36. Nxd1
{[%clk 0:01:12.2]} 36... Bc5 {[%clk 0:01:19]} 37. Nb2 {[%clk 0:01:11.2]} 37...
Ba6 {[%clk 0:01:12.3]} 38. Na4 {[%clk 0:01:10.5]} 38... Ba7 {[%clk 0:01:04.3]}
39. Nb3 {[%clk 0:01:06.9]} 39... Bxf2+ {[%clk 0:01:01]} 40. Kxf2 {[%clk
0:01:07.2]} 40... Bb5 {[%clk 0:00:53.1]} 41. Nb2 {[%clk 0:01:03.9]} 41... Ne5
{[%clk 0:00:52.8]} 42. Ke3 {[%clk 0:00:59.4]} 42... Nc4+ {[%clk 0:00:53.3]} 43.
Nxc4 {[%clk 0:00:59]} 43... Bxc4 {[%clk 0:00:54.2]} 44. Nd2 {[%clk 0:00:58.9]}
44... Ba2 {[%clk 0:00:52.1]} 45. Kd4 {[%clk 0:00:57.1]} 45... Kf8 {[%clk
0:00:49.4]} 46. Nc4 {[%clk 0:00:50.8]} 46... Ke7 {[%clk 0:00:41.1]} 47. Nb2
{[%clk 0:00:49.2]} 47... Nh5 {[%clk 0:00:37]} 48. Kc5 {[%clk 0:00:48.3]} 48...
b3 {[%clk 0:00:37.2]} 49. Kc6 {[%clk 0:00:47]} 49... Kd8 {[%clk 0:00:36]} 50. e5
{[%clk 0:00:23.4]} 50... Nf4 {[%clk 0:00:35.3]} 51. g3 {[%clk 0:00:20.5]} 51...
Ne2 {[%clk 0:00:29.2]} 52. f4 {[%clk 0:00:19.2]} 52... Nxg3 {[%clk 0:00:28.9]}
53. Nc4 {[%clk 0:00:17.7]} 53... Ne2 {[%clk 0:00:24.2]} 54. d6 {[%clk 0:00:17]}
54... Nxf4 {[%clk 0:00:16.3]} 55. Na5 {[%clk 0:00:17]} 55... Ne6 {[%clk
0:00:12.1]} 56. Nb7+ {[%clk 0:00:17.1]} 56... Ke8 {[%clk 0:00:12.7]} 57. d7+
{[%clk 0:00:17.1]} 57... Ke7 {[%clk 0:00:13.3]} 58. Nc5 {[%clk 0:00:15.8]} 58...
Nxc5 {[%clk 0:00:12.6]} 0-1

[Event "Early-Titled-Tuesday-Blitz-February-20-2024"]
[Site "Chess.com"]
[Date "2024.02.20"]
[Round "7"]
[White "Dewarfd"]
[Black "whiteglovethief"]
[Result "1/2-1/2"]
[WhiteElo "2143"]
[BlackElo "2440"]
[TimeControl "180+1"]
[EndTime "9:20:24 PST"]
[Termination "Game drawn by repetition"]

1. d4 {[%clk 0:02:59.5]} 1... d5 {[%clk 0:02:59.2]} 2. e3 {[%clk 0:02:57.2]}
2... e6 {[%clk 0:02:59.1]} 3. Nf3 {[%clk 0:02:57.1]} 3... f5 {[%clk 0:02:58.5]}
4. c4 {[%clk 0:02:54.5]} 4... Nf6 {[%clk 0:02:58.7]} 5. Bd3 {[%clk 0:02:53.9]}
5... Bd6 {[%clk 0:02:58]} 6. O-O {[%clk 0:02:52.9]} 6... O-O {[%clk 0:02:57.5]}
7. b3 {[%clk 0:02:53]} 7... b6 {[%clk 0:02:57.6]} 8. Ba3 {[%clk 0:02:52.1]} 8...
Bxa3 {[%clk 0:02:54]} 9. Nxa3 {[%clk 0:02:52]} 9... Bb7 {[%clk 0:02:54.7]} 10.
Nb5 {[%clk 0:02:45.5]} 10... Ne4 {[%clk 0:02:51.2]} 11. Rc1 {[%clk 0:02:42.3]}
11... c5 {[%clk 0:02:47.1]} 12. dxc5 {[%clk 0:02:05.8]} 12... Nxc5 {[%clk
0:02:43.3]} 13. cxd5 {[%clk 0:01:58.3]} 13... Bxd5 {[%clk 0:02:42.2]} 14. Bc4
{[%clk 0:01:55.5]} 14... Bxc4 {[%clk 0:02:34.8]} 15. Rxc4 {[%clk 0:01:53]} 15...
Nba6 {[%clk 0:02:19]} 16. Rd4 {[%clk 0:01:26.7]} 16... Qe8 {[%clk 0:02:12.5]}
17. Nd6 {[%clk 0:01:11.7]} 17... Qe7 {[%clk 0:02:13.1]} 18. e4 {[%clk
0:00:54.5]} 18... e5 {[%clk 0:02:06.6]} 19. Rd5 {[%clk 0:00:47.6]} 19... Nxe4
{[%clk 0:02:04.2]} 20. Nxe4 {[%clk 0:00:43.8]} 20... fxe4 {[%clk 0:02:05.1]} 21.
Rxe5 {[%clk 0:00:43.7]} 21... Qb7 {[%clk 0:02:05.1]} 22. Ng5 {[%clk 0:00:34.8]}
22... Nc5 {[%clk 0:01:58]} 23. Qd4 {[%clk 0:00:24.7]} 23... h6 {[%clk
0:01:20.8]} 24. Nxe4 {[%clk 0:00:20.8]} 24... Nxe4 {[%clk 0:01:20.7]} 25. Rxe4
{[%clk 0:00:21.7]} 25... Rad8 {[%clk 0:01:19.6]} 26. Qc4+ {[%clk 0:00:21]} 26...
Kh8 {[%clk 0:01:20]} 27. Rfe1 {[%clk 0:00:19]} 27... b5 {[%clk 0:01:14.1]} 28.
Qe2 {[%clk 0:00:15.2]} 28... Rd6 {[%clk 0:01:10.6]} 29. Re7 {[%clk 0:00:14.4]}
29... Qb6 {[%clk 0:01:09.8]} 30. Qe3 {[%clk 0:00:11.6]} 30... Qxe3 {[%clk
0:01:05.1]} 31. R7xe3 {[%clk 0:00:10.9]} 31... Rd2 {[%clk 0:01:05.4]} 32. R3e2
{[%clk 0:00:11.3]} 32... Rfd8 {[%clk 0:01:05.6]} 33. h3 {[%clk 0:00:09.3]} 33...
b4 {[%clk 0:01:04.6]} 34. Kf1 {[%clk 0:00:09.1]} 34... Kh7 {[%clk 0:01:04.1]}
35. f3 {[%clk 0:00:07.1]} 35... a5 {[%clk 0:01:03.4]} 36. Rxd2 {[%clk
0:00:07.4]} 36... Rxd2 {[%clk 0:01:03]} 37. Re2 {[%clk 0:00:07.3]} 37... Rd3
{[%clk 0:01:03]} 38. Kf2 {[%clk 0:00:07.9]} 38... a4 {[%clk 0:01:03.1]} 39. bxa4
{[%clk 0:00:07.1]} 39... Ra3 {[%clk 0:01:03.7]} 40. Kg3 {[%clk 0:00:05.7]} 40...
Rxa4 {[%clk 0:01:03.7]} 41. Rb2 {[%clk 0:00:05.2]} 41... Ra3 {[%clk 0:01:02.9]}
42. Rxb4 {[%clk 0:00:03.1]} 42... Rxa2 {[%clk 0:01:03.5]} 43. h4 {[%clk
0:00:03.5]} 43... h5 {[%clk 0:01:03.6]} 44. Rb6 {[%clk 0:00:03.7]} 44... g6
{[%clk 0:01:03.8]} 45. Rb7+ {[%clk 0:00:03.4]} 45... Kh6 {[%clk 0:01:04.3]} 46.
Rb6 {[%clk 0:00:02.2]} 46... Rc2 {[%clk 0:01:04.4]} 47. f4 {[%clk 0:00:02.3]}
47... Rc4 {[%clk 0:01:03.5]} 48. Rf6 {[%clk 0:00:02.2]} 48... Ra4 {[%clk
0:01:02.8]} 49. Rf8 {[%clk 0:00:02.4]} 49... Kg7 {[%clk 0:01:02.9]} 50. Rb8
{[%clk 0:00:02.5]} 50... Ra3+ {[%clk 0:01:03.2]} 51. Kh2 {[%clk 0:00:02.5]}
51... Ra2 {[%clk 0:01:02.5]} 52. Kh3 {[%clk 0:00:02.7]} 52... Ra1 {[%clk
0:01:01]} 53. g3 {[%clk 0:00:02.9]} 53... Kf6 {[%clk 0:01:01.4]} 54. Rb7 {[%clk
0:00:03.1]} 54... Rh1+ {[%clk 0:01:00.1]} 55. Kg2 {[%clk 0:00:03.5]} 55... Ra1
{[%clk 0:01:01]} 56. Kf3 {[%clk 0:00:04]} 56... Ra3+ {[%clk 0:01:00.8]} 57. Kg2
{[%clk 0:00:04.3]} 57... Ra2+ {[%clk 0:01:01]} 58. Kh3 {[%clk 0:00:04.5]} 58...
Ra3 {[%clk 0:00:59.8]} 59. Rb6+ {[%clk 0:00:04.9]} 59... Kf5 {[%clk 0:01:00]}
60. Rb5+ {[%clk 0:00:05]} 60... Ke4 {[%clk 0:00:57.9]} 61. Rg5 {[%clk
0:00:04.7]} 61... Kf3 {[%clk 0:00:53.7]} 62. Rxg6 {[%clk 0:00:04]} 62... Ra1
{[%clk 0:00:53.8]} 63. Kh2 {[%clk 0:00:04.1]} 63... Ra2+ {[%clk 0:00:53.8]} 64.
Kh3 {[%clk 0:00:03.2]} 64... Ra1 {[%clk 0:00:54]} 65. Kh2 {[%clk 0:00:03.5]}
65... Ra2+ {[%clk 0:00:54]} 66. Kh3 {[%clk 0:00:04.1]} 66... Ra1 {[%clk
0:00:54]} 1/2-1/2

[Event "Early-Titled-Tuesday-Blitz-February-20-2024"]
[Site "Chess.com"]
[Date "2024.02.20"]
[Round "7"]
[White "Raffael89"]
[Black "Christ_is_alive"]
[Result "0-1"]
[WhiteElo "1841"]
[BlackElo "2265"]
[TimeControl "180+1"]
[EndTime "9:20:25 PST"]
[Termination "Christ_is_alive won on time"]

1. e4 {[%clk 0:03:00.9]} 1... c5 {[%clk 0:02:59.8]} 2. c3 {[%clk 0:03:00.4]}
2... d5 {[%clk 0:02:58.9]} 3. exd5 {[%clk 0:03:01.3]} 3... Qxd5 {[%clk
0:02:59.2]} 4. d4 {[%clk 0:03:01.9]} 4... e6 {[%clk 0:02:59.8]} 5. Nf3 {[%clk
0:02:56.9]} 5... Nf6 {[%clk 0:03:00.3]} 6. dxc5 {[%clk 0:02:57.1]} 6... Qxd1+
{[%clk 0:02:58.3]} 7. Kxd1 {[%clk 0:02:58]} 7... Ng4 {[%clk 0:02:39.3]} 8. Bb5+
{[%clk 0:02:52.9]} 8... Nc6 {[%clk 0:02:12.6]} 9. Ke2 {[%clk 0:02:37.5]} 9...
Bxc5 {[%clk 0:02:09.1]} 10. Be3 {[%clk 0:02:29.3]} 10... Nxe3 {[%clk 0:02:04.4]}
11. fxe3 {[%clk 0:02:30.2]} 11... Bd7 {[%clk 0:01:58.7]} 12. Nbd2 {[%clk
0:02:18.2]} 12... O-O-O {[%clk 0:01:56.1]} 13. Nb3 {[%clk 0:01:55.8]} 13... Bb6
{[%clk 0:01:52.8]} 14. a4 {[%clk 0:01:46.3]} 14... a6 {[%clk 0:01:49.9]} 15. a5
{[%clk 0:01:41.8]} 15... Bc7 {[%clk 0:01:37.3]} 16. Bxc6 {[%clk 0:01:40.2]}
16... Bxc6 {[%clk 0:01:37]} 17. Nbd4 {[%clk 0:01:40.4]} 17... Bd5 {[%clk
0:01:28.1]} 18. b3 {[%clk 0:01:25.8]} 18... e5 {[%clk 0:01:26.2]} 19. c4 {[%clk
0:00:58.5]} 19... Be4 {[%clk 0:01:12.6]} 20. Ng5 {[%clk 0:00:42.7]} 20... Bg6
{[%clk 0:01:01.7]} 21. Ndf3 {[%clk 0:00:32.9]} 21... h6 {[%clk 0:00:59.8]} 22.
Nh3 {[%clk 0:00:30.1]} 22... Bc2 {[%clk 0:01:00.3]} 23. Nd2 {[%clk 0:00:28.1]}
23... f5 {[%clk 0:00:40.8]} 24. Nf2 {[%clk 0:00:27.6]} 24... e4 {[%clk
0:00:28.1]} 25. Rac1 {[%clk 0:00:26.8]} 25... Bd3+ {[%clk 0:00:27.6]} 26. Nxd3
{[%clk 0:00:27.4]} 26... Rxd3 {[%clk 0:00:27.8]} 27. g4 {[%clk 0:00:20.3]} 27...
Bxa5 {[%clk 0:00:26.3]} 28. Rhd1 {[%clk 0:00:13.8]} 28... Rhd8 {[%clk
0:00:24.9]} 29. Rc2 {[%clk 0:00:12.8]} 29... Rxd2+ {[%clk 0:00:20.3]} 30. Rdxd2
{[%clk 0:00:12.4]} 30... Rxd2+ {[%clk 0:00:21]} 31. Rxd2 {[%clk 0:00:12.5]}
31... Bxd2 {[%clk 0:00:21.7]} 32. Kxd2 {[%clk 0:00:12.1]} 32... g6 {[%clk
0:00:17.9]} 33. gxf5 {[%clk 0:00:09.4]} 33... gxf5 {[%clk 0:00:18.8]} 34. Kc3
{[%clk 0:00:09.5]} 34... Kd7 {[%clk 0:00:19.2]} 35. Kd4 {[%clk 0:00:10]} 35...
Ke6 {[%clk 0:00:19.4]} 36. b4 {[%clk 0:00:09.4]} 36... h5 {[%clk 0:00:16.8]} 37.
h4 {[%clk 0:00:09.2]} 37... b6 {[%clk 0:00:11.6]} 38. c5 {[%clk 0:00:08.3]}
38... bxc5+ {[%clk 0:00:12.2]} 39. bxc5 {[%clk 0:00:07]} 39... a5 {[%clk
0:00:12.5]} 40. c6 {[%clk 0:00:06.8]} 40... Kd6 {[%clk 0:00:10]} 41. c7 {[%clk
0:00:06.8]} 41... Kxc7 {[%clk 0:00:10.1]} 42. Ke5 {[%clk 0:00:05.9]} 42... a4
{[%clk 0:00:10.2]} 43. Kxf5 {[%clk 0:00:05.1]} 43... a3 {[%clk 0:00:10.3]} 44.
Kxe4 {[%clk 0:00:02.9]} 44... a2 {[%clk 0:00:11.2]} 45. Kf5 {[%clk 0:00:02.9]}
45... a1=Q {[%clk 0:00:12.1]} 46. Kg5 {[%clk 0:00:03.4]} 46... Qe5+ {[%clk
0:00:11.1]} 47. Kg6 {[%clk 0:00:03.6]} 47... Kd6 {[%clk 0:00:08.5]} 48. e4
{[%clk 0:00:02.8]} 48... Qxe4+ {[%clk 0:00:06.8]} 49. Kxh5 {[%clk 0:00:02.6]}
49... Qh7+ {[%clk 0:00:07.4]} 50. Kg5 {[%clk 0:00:02.8]} 50... Ke6 {[%clk
0:00:07.5]} 51. h5 {[%clk 0:00:03]} 51... Ke5 {[%clk 0:00:06.9]} 0-1

[Event "Early-Titled-Tuesday-Blitz-February-20-2024"]
[Site "Chess.com"]
[Date "2024.02.20"]
[Round "7"]
[White "IMRosen"]
[Black "Kirill_Klukin"]
[Result "1/2-1/2"]
[WhiteElo "2669"]
[BlackElo "2841"]
[TimeControl "180+1"]
[EndTime "9:20:26 PST"]
[Termination "Game drawn - insufficient material"]

1. e4 {[%clk 0:03:00.9]} 1... c5 {[%clk 0:02:59.2]} 2. Nc3 {[%clk 0:03:00.8]}
2... g6 {[%clk 0:02:58.8]} 3. d4 {[%clk 0:02:56.3]} 3... cxd4 {[%clk 0:02:59.1]}
4. Qxd4 {[%clk 0:02:56.9]} 4... Nf6 {[%clk 0:02:59.8]} 5. Nf3 {[%clk 0:02:56.7]}
5... Nc6 {[%clk 0:03:00.2]} 6. Qa4 {[%clk 0:02:57.1]} 6... d6 {[%clk 0:03:00.8]}
7. e5 {[%clk 0:02:57.8]} 7... dxe5 {[%clk 0:03:01.7]} 8. Nxe5 {[%clk 0:02:57.4]}
8... Bd7 {[%clk 0:03:02.4]} 9. Nxd7 {[%clk 0:02:49.3]} 9... Nxd7 {[%clk
0:03:03.3]} 10. Bb5 {[%clk 0:02:49.6]} 10... Bg7 {[%clk 0:03:03.7]} 11. Bxc6
{[%clk 0:02:41.2]} 11... bxc6 {[%clk 0:03:04.6]} 12. Qxc6 {[%clk 0:02:41.8]}
12... O-O {[%clk 0:03:01.2]} 13. O-O {[%clk 0:02:41.5]} 13... Rc8 {[%clk
0:03:01.3]} 14. Qa6 {[%clk 0:02:40.8]} 14... Bxc3 {[%clk 0:03:01.5]} 15. bxc3
{[%clk 0:02:39.1]} 15... Qb6 {[%clk 0:02:58.8]} 16. Qa3 {[%clk 0:02:29.8]} 16...
Qc5 {[%clk 0:02:32.5]} 17. Qxc5 {[%clk 0:02:17]} 17... Nxc5 {[%clk 0:02:27.4]}
18. Be3 {[%clk 0:02:12.3]} 18... Rc7 {[%clk 0:02:23.3]} 19. Bxc5 {[%clk
0:02:05]} 19... Rxc5 {[%clk 0:02:23.3]} 20. Rfb1 {[%clk 0:02:04.5]} 20... Rxc3
{[%clk 0:02:13.8]} 21. Rb7 {[%clk 0:02:00.2]} 21... e6 {[%clk 0:01:58.3]} 22.
Rxa7 {[%clk 0:01:55.4]} 22... Rxc2 {[%clk 0:01:58.8]} 23. g3 {[%clk 0:01:50.5]}
23... Rd8 {[%clk 0:01:50.4]} 24. Rf1 {[%clk 0:01:31.6]} 24... Rdd2 {[%clk
0:01:49.4]} 25. a4 {[%clk 0:01:28.2]} 25... Ra2 {[%clk 0:01:49.9]} 26. h4 {[%clk
0:01:11.4]} 26... Kg7 {[%clk 0:01:45.7]} 27. Ra8 {[%clk 0:01:07.6]} 27... Rd4
{[%clk 0:01:33.8]} 28. a5 {[%clk 0:01:07.3]} 28... Rda4 {[%clk 0:01:34.2]} 29.
Rc1 {[%clk 0:01:05.6]} 29... Rxa5 {[%clk 0:01:34.2]} 30. Rxa5 {[%clk 0:01:06.3]}
30... Rxa5 {[%clk 0:01:34.9]} 31. Rc3 {[%clk 0:01:07]} 31... Rd5 {[%clk
0:01:31.2]} 32. Kg2 {[%clk 0:01:07.5]} 32... h6 {[%clk 0:01:30.6]} 33. Rb3
{[%clk 0:01:08.1]} 33... Rc5 {[%clk 0:01:30.6]} 34. Ra3 {[%clk 0:01:08.2]} 34...
Kf6 {[%clk 0:01:17]} 35. Rf3+ {[%clk 0:01:08.1]} 35... Rf5 {[%clk 0:01:17.1]}
36. Ra3 {[%clk 0:01:09]} 36... g5 {[%clk 0:01:02]} 37. hxg5+ {[%clk 0:01:05.9]}
37... hxg5 {[%clk 0:01:02.9]} 38. Ra8 {[%clk 0:01:05.5]} 38... Rd5 {[%clk
0:01:01.5]} 39. Ra4 {[%clk 0:01:05.4]} 39... Kf5 {[%clk 0:01:00.4]} 40. Rb4
{[%clk 0:01:04.7]} 40... Ke5 {[%clk 0:00:59.8]} 41. Rb2 {[%clk 0:01:04]} 41...
f6 {[%clk 0:00:57.7]} 42. Re2+ {[%clk 0:01:04.5]} 42... Kf5 {[%clk 0:00:57.8]}
43. Ra2 {[%clk 0:01:05.4]} 43... Rd4 {[%clk 0:00:57.1]} 44. Ra5+ {[%clk
0:01:05.7]} 44... Rd5 {[%clk 0:00:52.9]} 45. Ra4 {[%clk 0:01:05.6]} 45... Ke5
{[%clk 0:00:52.8]} 46. Rb4 {[%clk 0:01:05.9]} 46... f5 {[%clk 0:00:50.6]} 47.
Ra4 {[%clk 0:01:05.6]} 47... Rc5 {[%clk 0:00:41.5]} 48. Rb4 {[%clk 0:01:05.1]}
48... Kd5 {[%clk 0:00:41.7]} 49. Rb8 {[%clk 0:01:04.1]} 49... f4 {[%clk
0:00:31.4]} 50. gxf4 {[%clk 0:00:36.6]} 50... gxf4 {[%clk 0:00:31.4]} 51. Kf3
{[%clk 0:00:29]} 51... Ke5 {[%clk 0:00:27]} 52. Rb4 {[%clk 0:00:29.6]} 52...
Rc3+ {[%clk 0:00:26.2]} 53. Kg4 {[%clk 0:00:22.9]} 53... f3 {[%clk 0:00:12.5]}
54. Rf4 {[%clk 0:00:20.5]} 54... Rc1 {[%clk 0:00:07.6]} 55. Rxf3 {[%clk
0:00:16.5]} 55... Rg1+ {[%clk 0:00:08]} 56. Rg3 {[%clk 0:00:16.8]} 56... Rxg3+
{[%clk 0:00:06.8]} 57. Kxg3 {[%clk 0:00:17.7]} 57... Ke4 {[%clk 0:00:07.1]} 58.
Kg2 {[%clk 0:00:16.1]} 58... Kf4 {[%clk 0:00:07.4]} 59. Kf1 {[%clk 0:00:16.1]}
59... Kf3 {[%clk 0:00:07.8]} 60. Ke1 {[%clk 0:00:16.7]} 60... e5 {[%clk
0:00:07.6]} 61. Kf1 {[%clk 0:00:17.4]} 61... e4 {[%clk 0:00:08.1]} 62. Ke1
{[%clk 0:00:18.1]} 62... e3 {[%clk 0:00:08.9]} 63. fxe3 {[%clk 0:00:19]} 63...
Kxe3 {[%clk 0:00:09.8]} 1/2-1/2